Cogmind - Beta 13 @@@ ROGUE MODE // 2024.07.09 @ 23:02:50 Player: Blaj Result: Destroyed by S-27 Virus with Autogun Performance ------------- Evolutions (4) 2000 Regions Visited (13) 2600 Robots Destroyed (221) 1105 Value Destroyed (8855) 8855 Prototype IDs (242) 4840 Alien Tech Used (0) 0 Bonus (5593) 5593 TOTAL SCORE: 24993 Bonus ------- High Alert Combat Kills 1769 Follower Combat Kills 33 Entered Garrisons 200 Aligned with FarCom 300 Met Data Miner 300 Used Data Conduit 3000 Acquired ECA 300 Friendly Fire -309 Cogmind --------- Core Integrity 0/850 Matter 188/300 Energy 99/100 System Corruption 0% Temperature Cool (0) Movement Core (50) Location -5/Proximity Caves Parts ------- > --- POWER (2) -------- (None) > --- PROPULSION (5) --- (None) > --- UTILITY (6) ------ Core Analyzer System Mapper Deep Network Scanner Quantum Router > --- WEAPON (2) ------- (None) > --- INVENTORY (5) ---- Micro Fission Core Improved Heavy Armor Plating Peak State ------------ > --- POWER ------------ Fission Core Micro Fission Core > --- PROPULSION ------- Medium Treads Flying Fortress v7 > --- UTILITY ---------- Huge Storage Unit Advanced Terrain Scanner Improved Melee Analysis Suite Core Analyzer Weapon Cycler Transmission Jammer > --- WEAPON ----------- Improved EM Pulse Cannon Makeshift Spear > --- INVENTORY -------- High-capacity Storage Unit Energy Well Matter Compressor Launcher Loader Improved Heavy Armor Plating Heavy Reflective Plating Improved Shield Generator Hacking Suite Hacking Suite System Restoration Module Tractor Beam Antimatter Cannon Mini Grenade Launcher Mini Grenade Launcher [Rating: 83] Favorites ----------- Power Micro Fission Core Engine Light Ion Engine Power Core Micro Fission Core Reactor Cold Fusion Reactor Propulsion Light Treads Treads Light Treads Leg Aluminum Leg Wheel Armored Wheel Flight Unit Flying Fortress v7 Utility High-capacity Storage Unit Device Improved Heat Sink Storage High-capacity Storage Unit Processor Launcher Guidance Computer Hackware Hacking Suite Protection Hardened Medium Armor Plating Weapon Advanced Assault Cannon Energy Gun EM Shotgun Energy Cannon Compact Ion Cannon Ballistic Gun Enhanced Autogun Ballistic Cannon Advanced Assault Cannon Launcher Mini Grenade Launcher Impact Weapon Maul Piercing Weapon Makeshift Spear Build | -11 -10 -10 -10 -9 -8 -8 -8 -8 -6 -6 -6 -6 -5 ------- Run | Yrd Mat Min Exi Min Mat Sto Gar Rec Fac Low Low Dat Pro Slots Evolved 8 | . . . . . 4 . . . 4 . . . . Power 1 | . . . . . . . . . 1 . . . . Propulsion 3 | . . . . . 2 . . . 1 . . . . Utility 4 | . . . . . 2 . . . 2 . . . . Weapon . | . . . . . . . . . . . . . . Parts Attached 209 | 3 24 2 1 4 23 41 29 3 58 3 8 8 2 Power 14 | . . . . 1 1 . 2 . 6 . 2 2 . Engine 4 | . . . . 1 . . 1 . 2 . . . . Core 9 | . . . . . 1 . 1 . 3 . 2 2 . Reactor 1 | . . . . . . . . . 1 . . . . Propulsion 35 | 2 4 1 . . 6 6 5 2 7 . 1 1 . Treads 23 | 2 . . . . 5 5 5 2 3 . 1 . . Leg . | . . . . . . . . . . . . . . Wheel 6 | . 4 1 . . . 1 . . . . . . . Hover . | . . . . . . . . . . . . . . Flight 6 | . . . . . 1 . . . 4 . . 1 . Utility 71 | 1 4 1 1 . 8 11 6 . 28 2 2 5 2 Device 37 | 1 1 1 . . 6 9 3 . 13 2 . 1 . Storage 7 | . 1 . 1 . . . . . 3 . 1 1 . Processor 7 | . . . . . . 1 2 . 3 . 1 . . Hackware 6 | . . . . . . . . . 3 . . 1 2 Protection 14 | . 2 . . . 2 1 1 . 6 . . 2 . Artifact . | . . . . . . . . . . . . . . Weapon 89 | . 16 . . 3 8 24 16 1 17 1 3 . . Energy Gun 19 | . 11 . . 2 3 2 1 . . . . . . Energy Cannon 12 | . . . . . 1 2 3 . 4 1 1 . . Ballistic Gun 4 | . . . . . . 4 . . . . . . . Ballistic Cannon 26 | . 1 . . . 4 10 5 1 5 . . . . Launcher 22 | . . . . . . 6 7 . 8 . 1 . . Special Weapon . | . . . . . . . . . . . . . . Impact Weapon 5 | . 4 . . 1 . . . . . . . . . Slashing Weapon . | . . . . . . . . . . . . . . Piercing Weapon 1 | . . . . . . . . . . . 1 . . Special Melee Weapon . | . . . . . . . . . . . . . . Unidentified Prototypes 16 | . 1 . . . 2 6 . . 4 . . 1 2 Parts Lost 41 | . 6 2 . 4 2 6 5 1 11 . . 4 . Power 5 | . . . . 1 . . 1 . 3 . . . . Propulsion 16 | . 1 1 . . 1 4 1 . 6 . . 2 . Utility 6 | . 1 1 . . 1 1 1 . 1 . . . . Weapon 14 | . 4 . . 3 . 1 2 1 1 . . 2 . Highest Loss Streak 5 | . 3 1 . 3 1 4 2 1 5 . . 3 . To Critical Strikes . | . . . . . . . . . . . . . . Average Slot Usage (%) 87 | . 99 100 100 97 91 99 99 99 72 56 60 61 26 Engine 3 | . 14 14 14 14 7 . . . . . . . . Core 5 | . . . . . 1 9 8 9 8 3 1 7 . Treads 18 | . 1 . . . 35 33 36 35 7 . 1 5 . Wheel 5 | . 26 28 28 28 . 2 . . . . . . . Flight 1 | . . . . . . . . . 5 6 6 3 . Device 9 | . 6 . 14 14 16 9 6 9 8 19 20 11 . Storage 8 | . 14 14 14 14 9 9 9 9 6 6 6 5 . Processor 5 | . . . . . . 8 11 9 5 13 13 9 6 Hackware 3 | . . . . . . . . . 11 . . . 20 Protection 5 | . 7 13 . . 3 8 8 9 3 . . 2 . Energy Gun 4 | . 20 28 28 25 . . 2 . . . . . . Energy Cannon 3 | . . . . . . 4 3 9 3 6 2 5 . Ballistic Cannon 6 | . 4 . . . 17 7 7 9 4 . . . . Launcher 1 | . . . . . . . 4 . 3 . 4 . . Naked Turns . | . . . . . . . . . . . . . . Heaviest Build 133 | 12 32 32 50 52 70 70 71 63 133 60 107 107 . Greatest Support 140 | 40 40 24 24 24 112 104 82 82 140 50 50 50 3 Greatest Overweight (x) 4 | . 4 1 2 2 1 4 1 1 1 1 2 3 . Average Overweight (x) . | . . 1 1 1 . . . . . . . . . Largest Inventory Capacity 25 | 8 15 15 20 20 20 20 20 20 25 20 25 25 5 Average Capacity 19 | 8 10 15 18 20 20 20 20 20 22 20 20 19 5 Most Carried 24 | 8 10 13 17 18 20 20 20 20 24 20 20 20 4 Average Carried 17 | 5 7 11 13 16 17 19 19 19 20 19 19 14 3 Final Capacity 25 | 8 15 15 20 20 20 20 20 20 20 20 25 5 5 Final Carried 20 | 3 9 12 17 15 20 20 20 20 20 20 17 5 3 Class Distribution -------------------- 40% | Mutant 34% | Scavenger-Mutant 12% | Machinist-Mutant 11% | Hacker-Mutant Dominant Class ---------------- Mutant | -10/Materials Mutant | -10/Mines Mutant | -10/Exiles Mutant | -9/Mines Mutant | -8/Materials Scavenger-Mutant | -8/Storage Scavenger-Mutant | -8/Garrison Scavenger-Mutant | -8/Recycling Machinist-Mutant | -6/Factory Mutant | -6/Lower Caves Mutant | -6/Lower Caves Mutant | -6/Data Miner Wizard-Mutant | -5/Proximity Caves Resources | -11 -10 -10 -10 -9 -8 -8 -8 -8 -6 -6 -6 -6 -5 ----------- Run | Yrd Mat Min Exi Min Mat Sto Gar Rec Fac Low Low Dat Pro Matter Collected 6757 | 231 434 20 10 . 1270 1799 809 127 1638 272 119 28 . Remotely 1042 | . . . . . 213 582 167 . 80 . . . . Salvage Created 7677 | 88 1191 148 . . 1033 1309 1678 512 1460 93 27 138 . Parts 417 | 6 82 8 . . 48 68 101 20 72 3 2 7 . Haulers Intercepted 10 | . 2 . . . 2 4 . . 2 . . . . Recyclers Shooed 10 | . . . . . 1 2 . 2 5 . . . . Parts Field Recycled 23 | . . . . . 23 . . . . . . . . Retrieved Matter 116 | . . . . . 116 . . . . . . . . Parts Self-Destructed 3 | . . . . . . . . . . 1 2 . . Prevented 3 | . . . . . . . . . . 3 . . . Kills | -11 -10 -10 -10 -9 -8 -8 -8 -8 -6 -6 -6 -6 -5 ------- Run | Yrd Mat Min Exi Min Mat Sto Gar Rec Fac Low Low Dat Pro Combat Hostiles Destroyed 164 | . 24 5 . . 18 24 39 5 45 . 3 1 . Melee 2 | . . . . . . 1 . . . . . 1 . Guns 24 | . 13 5 . . . 2 4 . . . . . . Cannons 68 | . 4 . . . 18 15 11 5 15 . . . . AOE 62 | . 7 . . . . 1 21 . 30 . 3 . . Classes Destroyed 19 | 2 8 . . . 3 3 1 1 . 1 . . . Worker 13 | . 1 . . . 4 3 . . 5 . . . . Builder 7 | . 2 . . . 2 2 . . 1 . . . . Tunneler 2 | 1 1 . . . . . . . . . . . . Hauler 10 | . 2 . . . 2 4 . . 2 . . . . Recycler 9 | 1 1 . . . 4 1 . . 2 . . . . Operator 2 | . 1 . . . 1 . . . . . . . . Watcher 11 | . 3 . . . 2 2 . . 4 . . . . Swarmer 28 | . 3 3 . . . . 10 . 9 . 3 . . Grunt 90 | . 19 2 . . 10 16 16 2 25 . . . . Brawler 8 | . . . . . . 1 5 . 2 . . . . Duelist 6 | . . . . . . 1 . 1 4 . . . . Protector 2 | . . . . . . 1 . . 1 . . . . Sentry 15 | . . . . . 4 4 4 2 1 . . . . Demolisher 1 | . . . . . . . . 1 . . . . . Specialist 2 | . . . . . 2 . . . . . . . . Hunter 6 | . . . . . 2 1 3 . . . . . . Programmer 5 | . . . . . . . 1 1 3 . . . . Enhanced Grunt 1 | . . . . . . . . . . . . 1 . Subdweller 2 | . 2 . . . . . . . . . . . . Samaritan 2 | . . . . . . . . . . 2 . . . Best Kill Streak 10 | 2 7 2 . . 4 6 5 3 10 . 3 1 . Combat Bots Only 8 | . 5 2 . . 3 4 5 3 8 . 3 1 . Max Kills in Single Turn 4 | 1 4 1 . . 2 2 3 1 3 1 1 1 . Gunslinging 1 | . 1 . . . . . . . . . . . . Exploded 3 | . 3 . . . . 1 3 . 2 . 1 . . Melee 1 | . . . . . . 1 . . . . . 1 . Uniques/NPCs Destroyed 1 | . . . . . . . . . . . . 1 . Data Miner (-6/Data Miner) Combat | -11 -10 -10 -10 -9 -8 -8 -8 -8 -6 -6 -6 -6 -5 -------- Run | Yrd Mat Min Exi Min Mat Sto Gar Rec Fac Low Low Dat Pro Hostile Shots Fired 880 | . 100 21 . . 138 105 94 23 332 1 20 42 4 Missed 251 | . 25 4 . . 53 21 26 4 90 . 15 12 1 Damage Taken 11218 | . 973 158 . 381 1264 1456 1152 339 4112 20 86 1228 49 Core 1503 | . 122 47 . 70 161 142 79 27 326 . 47 433 49 Absorbed by Shields 662 | . . . . . 161 46 60 33 362 . . . . Reduced by Siege Mode 95 | . . . . . . . . . 95 . . . . Ignored by Resistances 158 | . . . . . . . . . . . . 158 . Regen/Repaired (Parts) 825 | . 38 . . . . 456 . . 331 . . . . Core Remaining (%) 43 | 100 . . . 4 . . . 25 . . . . . Volleys Fired 625 | 7 68 11 . . 104 108 108 19 185 7 3 5 . Largest 2 | 2 2 2 . . 2 2 2 2 2 1 1 1 . Hottest 140 | 60 90 90 . . 96 138 140 138 130 69 30 69 . Shots Fired 959 | 14 134 22 . . 183 190 161 30 210 7 3 5 . Gun 195 | 14 99 22 . . . 45 15 . . . . . . Cannon 651 | . 35 . . . 183 129 109 30 153 7 . 5 . Launcher 113 | . . . . . . 16 37 . 57 . 3 . . Special . | . . . . . . . . . . . . . . Kinetic 560 | 7 53 . . . 183 149 51 11 106 . . . . Thermal 168 | 7 15 . . . . 25 58 19 44 . . . . Explosive 60 | . . . . . . . . . 57 . 3 . . Electromagnetic 171 | . 66 22 . . . 16 52 . 3 7 . 5 . Robot Hit Streak 23 | 6 17 19 . . 12 12 23 8 16 5 . 5 . Robot Miss Streak 5 | 2 5 3 . . 3 3 2 2 3 1 1 . . Penetration Max . | . . . . . . . . . . . . . . Secondary Targets 3 | . 2 1 . . . . . . . . . . . Max Gunslinging Chain 1 | . 1 1 . . . . . . . . . . . Shots Hit Robots 534 | 10 90 17 . . 95 118 85 17 89 5 . 8 . Core Hits 434 | 3 60 9 . . 41 48 59 14 185 3 5 7 . Critical Kills 1 | . . . . . . 1 . . . . . . . Critical Parts Destroyed . | . . . . . . . . . . . . . . Critical Strikes 20 | . 1 . . . 7 5 2 . 5 . . . . Meltdown 1 | . . . . . . 1 . . . . . . . Blast 19 | . 1 . . . 7 4 2 . 5 . . . . Melee Attacks 31 | . 5 . . 5 . . . . . . . 21 . Impact 10 | . 5 . . 5 . . . . . . . . . Slashing . | . . . . . . . . . . . . . . Piercing 21 | . . . . . . . . . . . . 21 . Sneak Attacks 1 | . . . . . . . . . . . . 1 . Combat Hostiles . | . . . . . . . . . . . . . . Follow-up Attacks . | . . . . . . . . . . . . . . Damage Inflicted 22478 | 116 2332 241 . . 2793 3727 3683 770 8228 150 204 234 . Guns 2057 | 116 1068 196 . . . 511 166 . . . . . . Cannons 10768 | . 444 . . . 2706 2411 1804 694 2469 150 . 90 . Explosions 9299 | . 820 45 . . . 789 1713 . 5728 . 204 . . Melee 144 | . . . . . . . . . . . . 144 . Ramming 210 | . . . . . 87 16 . 76 31 . . . . Kinetic 8859 | 59 608 . . . 2706 2483 921 257 1825 . . . . Thermal 3137 | 57 345 45 . . . 453 1246 437 554 . . . . Explosive 6494 | . 562 . . . . . . . 5728 . 204 . . Electromagnetic 3634 | . 817 196 . . . 775 1516 . 90 150 . 90 . Impact . | . . . . . . . . . . . . . . Slashing . | . . . . . . . . . . . . . . Piercing 144 | . . . . . . . . . . . . 144 . Highest Corruption 4 | . . . . 2 . 1 3 4 1 . . . . Average Corruption 2 | . . . . 2 . 1 2 3 1 . . . . Corruption Purged 2 | . . . . . . 1 . . 1 . . . . Corruption Blocked . | . . . . . . . . . . . . . . Effects 53 | . . . . . . . 31 21 1 . . . . Message Errors 14 | . . . . . . . 9 4 1 . . . . Matter Fused 11 | . . . . . . . 5 6 . . . . . Heat Flow Errors 5 | . . . . . . . 2 3 . . . . . Energy Discharges 7 | . . . . . . . 5 2 . . . . . Parts Rejected 2 | . . . . . . . 1 1 . . . . . Data Loss (minor) 7 | . . . . . . . 4 3 . . . . . Data Loss (major) 3 | . . . . . . . 2 1 . . . . . Misfires 2 | . . . . . . . 2 . . . . . . Alerts 1 | . . . . . . . . 1 . . . . . Weapon Failures 1 | . . . . . . . 1 . . . . . . Overload Shots . | . . . . . . . . . . . . . . Overflow Damage 320 | . 2 . . . 16 103 36 44 89 . 30 . . Projectiles 231 | . 2 . . . 16 98 23 44 48 . . . . Explosions 89 | . . . . . . 5 13 . 41 . 30 . . Melee . | . . . . . . . . . . . . . . Knockbacks 77 | . 4 . . . 30 19 4 6 14 . . . . Impact 2 | . . . . . 1 . . 1 . . . . . Kinetic 67 | . 4 . . . 27 14 4 4 14 . . . . Secondary 8 | . . . . . 2 5 . 1 . . . . . Self-Inflicted Damage 550 | . 52 . . . . 55 233 . 153 . 57 . . Shots 24 | . 2 . . . . 4 12 . 4 . 2 . . Rammed 21 | . . . . . 8 . . 11 2 . . . . Targets Rammed 23 | . . . . . 9 1 . 11 2 . . . . Kicked . | . . . . . . . . . . . . . . Crushed 2 | . . . . . 1 1 . . . . . . . Highest Temperature 360 | . 300 172 . . 288 209 317 262 360 241 . 209 . Average Temperature 81 | . 60 56 . . 65 41 103 76 93 122 . 98 . Received Heat Transfer 3401 | . 468 33 . . 452 642 417 59 1288 27 6 . 9 Effects 3 | . . . . . 1 . . . 2 . . . . Shutdowns 2 | . . . . . . . . . 2 . . . . Energy Bleed 1 | . . . . . 1 . . . . . . . . Siege Activations 3 | . . . . . . . . . 3 . . . . Total Turns 113 | . . . . . . . . . 113 . . . . Longest Duration 61 | . . . . . . . . . 61 . . . . Robots Corrupted 9 | . . . . . . 4 3 . 1 1 . . . Combat Hostiles 7 | . . . . . . 4 3 . . . . . . Parts Fried 20 | . . . . . . 9 2 . 2 3 . 4 . Impact Corruptions . | . . . . . . . . . . . . . . Robots Melted 1 | . . . . . . 1 . . . . . . . Combat Hostiles 1 | . . . . . . 1 . . . . . . . Parts Melted 3 | 1 . . . . . . . . 2 . . . . Heat Transferred 4264 | 125 400 50 . . . 642 1634 563 850 . . . . Parts Sabotaged 3 | . . . . . . . . . 3 . . . . Parts Stolen . | . . . . . . . . . . . . . . Parts Stripped . | . . . . . . . . . . . . . . Power Chain Reactions 19 | . 4 1 . . . 2 12 . . . . . . Alert | -11 -10 -10 -10 -9 -8 -8 -8 -8 -6 -6 -6 -6 -5 ------- Run | Yrd Mat Min Exi Min Mat Sto Gar Rec Fac Low Low Dat Pro Peak Influence 1743 | 10 599 324 . 15 303 450 1743 870 1363 . . . . Initial 784 | . 6 233 . . 5 127 251 784 457 . . . . Average 455 | 6 226 245 . 1 135 311 1050 669 435 . . . . Maximum Alert Level 5 | . 2 1 . . 1 2 5 3 4 . . . . Low Security (%) 28 | 100 62 34 . 100 69 15 . . 22 . . . . Level 1 28 | . 12 65 . . 30 60 6 . 36 . . . . Level 2 19 | . 24 . . . . 23 16 63 18 . . . . Level 3 14 | . . . . . . . 29 36 20 . . . . Level 4 6 | . . . . . . . 37 . 3 . . . . Level 5 1 | . . . . . . . 10 . . . . . . High Security . | . . . . . . . . . . . . . . Max Security . | . . . . . . . . . . . . . . Squads Dispatched 47 | . 6 . . . 6 8 . . 27 . . . . Investigation 17 | . 4 . . . 1 1 . . 11 . . . . Extermination 5 | . . . . . . . . . 5 . . . . Reinforcement 11 | . 2 . . . 2 . . . 7 . . . . Assault 7 | . . . . . . 3 . . 4 . . . . Garrison 7 | . . . . . 3 4 . . . . . . . Intercept . | . . . . . . . . . . . . . . Searches Triggered 1 | . . . . . . . . . 1 . . . . Construction Impeded 2 | . . . . . . . . . 2 . . . . Haulers Reinforced 2 | . . . . . . . . . 2 . . . . Active Scanning Responses . | . . . . . . . . . . . . . . Cargo Convoy Interrupts . | . . . . . . . . . . . . . . Stealth | -11 -10 -10 -10 -9 -8 -8 -8 -8 -6 -6 -6 -6 -5 --------- Run | Yrd Mat Min Exi Min Mat Sto Gar Rec Fac Low Low Dat Pro Distress Signals 20 | . 2 . . 1 9 4 . . 4 . . . . Communications Jammed 20 | . . . . . . . . . 20 . . . . Distress Signals 20 | . . . . . . . . . 20 . . . . Times Spotted 303 | . 41 8 . 5 39 37 41 7 103 3 7 4 8 Peak Tracking Total 12 | . 7 3 . 2 7 9 6 2 12 4 4 3 8 Tactical Retreats 37 | . 7 . . 1 4 3 1 2 15 1 3 . . Traps | -11 -10 -10 -10 -9 -8 -8 -8 -8 -6 -6 -6 -6 -5 ------- Run | Yrd Mat Min Exi Min Mat Sto Gar Rec Fac Low Low Dat Pro Traps Triggered 11 | . 1 . . 1 1 . 5 . 3 . . . . Indirectly 4 | . . . . . . . 4 . . . . . . Trap Hack Attempts . | . . . . . . . . . . . . . . Triggered . | . . . . . . . . . . . . . . Disarmed . | . . . . . . . . . . . . . . Reprogrammed . | . . . . . . . . . . . . . . Reused . | . . . . . . . . . . . . . . Traps Extracted . | . . . . . . . . . . . . . . Installed . | . . . . . . . . . . . . . . Triggered 3 | . . . . . . 1 . . . 2 . . . Most Traps Carried 3 | . . 3 3 3 3 . . . . . . . . Machines | -11 -10 -10 -10 -9 -8 -8 -8 -8 -6 -6 -6 -6 -5 ---------- Run | Yrd Mat Min Exi Min Mat Sto Gar Rec Fac Low Low Dat Pro Machines Disabled 36 | . 3 1 . . 3 9 9 . 11 . . . . Max in Single Turn 4 | . 1 1 . . 1 1 2 . 4 . . . . Garrison Access 1 | . . . . . . . . . 1 . . . . Garrison Relay 5 | . . . . . . . 5 . . . . . . Phase Generator 1 | . . . . . . . 1 . . . . . . Machines Repaired . | . . . . . . . . . . . . . . Machines Dismantled . | . . . . . . . . . . . . . . Machines Sabotaged . | . . . . . . . . . . . . . . Overloaded Fab Kills . | . . . . . . . . . . . . . . Hacking | -11 -10 -10 -10 -9 -8 -8 -8 -8 -6 -6 -6 -6 -5 --------- Run | Yrd Mat Min Exi Min Mat Sto Gar Rec Fac Low Low Dat Pro Machines Accessed 70 | . 9 . 3 1 5 11 4 6 26 . 1 4 . Terminals 43 | . 6 . . . 4 9 4 6 14 . . . . Fabricators 6 | . . . . . . . . . 6 . . . . Repair Stations 5 | . 1 . . . . 1 . . 3 . . . . Recycling Units 4 | . 2 . . . 1 . . . 1 . . . . Scanalyzers 1 | . . . . . . . . . 1 . . . . Garrison Access 2 | . . . . . . 1 . . 1 . . . . Total Hacks 215 | . 22 . 7 1 20 31 9 18 76 . 1 30 . Successful 126 | . 10 . 7 1 10 16 4 4 43 . 1 30 . Failed 88 | . 11 . . . 10 15 5 14 33 . . . . Catastrophic 14 | . 2 . . . . 3 1 4 4 . . . . Database Lockouts 1 | . 1 . . . . . . . . . . . . Manual 86 | . 12 . 1 . 18 10 . 15 30 . . . . Terminals 124 | . 15 . . . 18 24 9 18 40 . . . . Fabricators 17 | . . . . . . . . . 17 . . . . Repair Stations 15 | . 4 . . . . 5 . . 6 . . . . Recycling Units 11 | . 3 . . . 2 . . . 6 . . . . Scanalyzers 4 | . . . . . . . . . 4 . . . . Garrison Access 5 | . . . . . . 2 . . 3 . . . . Terminal Hacks 74 | . 3 . 7 1 5 10 4 3 10 . 1 30 . Record 16 | . . . 6 . . . . . . . . 10 . Part Schematic 17 | . 1 . . . . 1 . 3 1 . . 11 . Robot Schematic 6 | . . . . . . . . . . . . 6 . Robot Analysis 2 | . . . . . . 2 . . . . . . . Prototype ID Bank 8 | . 1 . . . . 2 . . 2 . . 3 . Open Door 6 | . . . . 1 . 3 1 . . . 1 . . Branch Access Points 2 | . . . . . 1 . . . 1 . . . . Emergency Access Points 1 | . . . . . . . 1 . . . . . . Terminal Index 1 | . . . . . . . . . 1 . . . . Unreport Threat 7 | . . . . . 4 1 . . 2 . . . . Recall Extermination 1 | . . . . . . . . . 1 . . . . Hauler Manifests 1 | . . . . . . . . . 1 . . . . Zone Layout 3 | . 1 . . . . 1 . . 1 . . . . Garrison Registry 1 | . . . . . . . 1 . . . . . . Patrol Navigation 1 | . . . . . . . 1 . . . . . . Derelict Proto ID Bank 1 | . . . 1 . . . . . . . . . . Fabricator Hacks 13 | . . . . . . . . . 13 . . . . Network Status 1 | . . . . . . . . . 1 . . . . Load Schematic 6 | . . . . . . . . . 6 . . . . Build 6 | . . . . . . . . . 6 . . . . Repair Station Hacks 12 | . 2 . . . . 4 . . 6 . . . . Scan Component 6 | . 1 . . . . 2 . . 3 . . . . Repair 6 | . 1 . . . . 2 . . 3 . . . . Recycling Unit Hacks 4 | . . . . . . . . . 4 . . . . Process 2 | . . . . . . . . . 2 . . . . Retrieve Matter 2 | . . . . . . . . . 2 . . . . Scanalyzer 2 | . . . . . . . . . 2 . . . . Insert Component 1 | . . . . . . . . . 1 . . . . Analyze 1 | . . . . . . . . . 1 . . . . Garrison Access Hacks 2 | . . . . . . 1 . . 1 . . . . Unlock Access 2 | . . . . . . 1 . . 1 . . . . Unauthorized Hacks 19 | . 5 . . . 5 1 . 1 7 . . . . Terminals 12 | . 2 . . . 4 1 . 1 4 . . . . Assimilate 1 | . . . . . . . . . 1 . . . . Botnet 10 | . 2 . . . 3 1 . 1 3 . . . . Operators 1 | . . . . . 1 . . . . . . . . Fabricators 1 | . . . . . . . . . 1 . . . . Haulers 1 | . . . . . . . . . 1 . . . . Repair Stations . | . . . . . . . . . . . . . . Recycling Units 5 | . 3 . . . 1 . . . 1 . . . . Recyclers 3 | . 1 . . . 1 . . . 1 . . . . Tunnel 2 | . 2 . . . . . . . . . . . . Scanalyzers . | . . . . . . . . . . . . . . Garrison Access 1 | . . . . . . . . . 1 . . . . Reprogram 1 | . . . . . . . . . 1 . . . . Data Cores Recovered . | . . . . . . . . . . . . . . Used . | . . . . . . . . . . . . . . Hacking Detections 53 | . 7 . . . 5 10 3 6 22 . . . . Full Trace Events 18 | . 2 . . . . . 1 5 10 . . . . Feedback Events . | . . . . . . . . . . . . . . Feedback Blocked 1 | . . . . . . . . . 1 . . . . Robot Schematics Acquired 6 | . . . . . . . . . . . . 6 . Robots Built . | . . . . . . . . . . . . . . Authchips . | . . . . . . . . . . . . . . Time . | . . . . . . . . . . . . . . Total Robot Build Rating . | . . . . . . . . . . . . . . Part Schematics Acquired 18 | . 1 . . . . 1 . 3 2 . . 11 . Parts Built 8 | . . . . . . . . . 8 . . . . Authchips . | . . . . . . . . . . . . . . Time 340 | . . . . . . . . . 340 . . . . Total Part Build Rating 36 | . . . . . . . . . 36 . . . . Parts Repaired 6 | . 1 . . . . 2 . . 3 . . . . Time 203 | . 32 . . . . 76 . . 95 . . . . Parts Recycled . | . . . . . . . . . . . . . . Recycled Matter 246 | . . . . . . . . . 246 . . . . Retrieved Matter 246 | . . . . . . . . . 246 . . . . Retrieved Components . | . . . . . . . . . . . . . . Parts Scanalyzed 1 | . . . . . . . . . 1 . . . . Part Schematics Acquired 1 | . . . . . . . . . 1 . . . . Parts Damaged . | . . . . . . . . . . . . . . Bothacking | -11 -10 -10 -10 -9 -8 -8 -8 -8 -6 -6 -6 -6 -5 ------------ Run | Yrd Mat Min Exi Min Mat Sto Gar Rec Fac Low Low Dat Pro Used RIF Installer . | . . . . . . . . . . . . . . Robots Hacked . | . . . . . . . . . . . . . . Non-combat . | . . . . . . . . . . . . . . Combat . | . . . . . . . . . . . . . . Robot Hacks Applied . | . . . . . . . . . . . . . . Relay Couplers Released 18 | . . . . . . . 17 . 1 . . . . Machine Destruction 18 | . . . . . . . 17 . 1 . . . . Fabnet Peak Effective % . | . . . . . . . . . . . . . . Robots Rewired 12 | . . . . . . . . 12 . . . . . Allies Hacked 1 | . . . . . . . . 1 . . . . . Hacks Repelled . | . . . . . . . . . . . . . . Allies | -11 -10 -10 -10 -9 -8 -8 -8 -8 -6 -6 -6 -6 -5 -------- Run | Yrd Mat Min Exi Min Mat Sto Gar Rec Fac Low Low Dat Pro Total Allies 22 | . . . . 3 . 2 2 12 3 . . . . Largest Group 10 | . . . . 3 . 2 2 10 3 . . . . Highest-Rated Group 174 | . . . . 40 . 62 62 174 62 . . . . Highest-Rated Ally 34 | . . . . 16 . 31 31 34 27 . . . . Total Orders 4 | . . . . . . . . . . 4 . . . EXPLORE 4 | . . . . . . . . . . 4 . . . Ally Attacks 42 | . . . . 8 . 9 5 13 7 . . . . Total Damage 638 | . . . . 96 . 167 53 172 150 . . . . Kills 5 | . . . . 1 . 1 . 2 1 . . . . Allies Corrupted . | . . . . . . . . . . . . . . Allies Melted . | . . . . . . . . . . . . . . Intel | -11 -10 -10 -10 -9 -8 -8 -8 -8 -6 -6 -6 -6 -5 ------- Run | Yrd Mat Min Exi Min Mat Sto Gar Rec Fac Low Low Dat Pro Robot Analysis Total 136 | . . . . . . 2 . . . . . 134 . Derelict Logs Recovered 7 | . . 2 . 1 . . . . . 2 1 . 1 Drone Launches 4 | . . . . . . . . . . 4 . . . Drone Recoveries 2 | . . . . . . . . . . 2 . . . Exploration | -11 -10 -10 -10 -9 -8 -8 -8 -8 -6 -6 -6 -6 -5 ------------- Run | Yrd Mat Min Exi Min Mat Sto Gar Rec Fac Low Low Dat Pro Turns Passed 13339 | 45 1121 610 406 350 1540 1552 1885 1086 3643 379 266 398 58 Spaces Moved 8870 | 14 787 520 354 273 648 666 924 573 3009 418 393 180 111 Core 130 | . 1 . . . . . . . . . . 18 111 Treads 3361 | 4 29 . . . 605 522 924 573 683 . . 21 . Legs 10 | 10 . . . . . . . . . . . . . Wheels 2048 | . 757 520 354 273 . 144 . . . . . . . Hover . | . . . . . . . . . . . . . . Flight 3321 | . . . . . 43 . . . 2326 418 393 141 . Fastest Speed 42 | 120 90 105 105 105 50 145 158 156 42 50 50 50 50 Average Speed 107 | 131 98 105 113 119 153 158 158 156 71 71 59 153 50 Slowest Speed 400 | 160 250 105 120 120 240 238 243 235 240 150 270 400 50 Overloaded Moves . | . . . . . . . . . . . . . . Propulsion Burnouts . | . . . . . . . . . . . . . . Robots Hopped 25 | . . . . . . . . . 24 . . 1 . Cave-ins Triggered 1 | . . . . 1 . . . . . . . . . Exploration Rate (%) 65 | 3 96 94 61 69 52 83 84 93 62 74 52 81 16 Regions Visited 13 Branch Regions 9 Pre-discovered Areas 26 | . 2 . 1 2 . 1 . . . 1 . 19 . Known Exits Taken 3 | . . . . . 1 1 . . 1 . . . . Unknown Exits Taken 9 | 1 1 1 1 1 . . . 1 . 1 1 1 . Scrap Searched 6 | . . 1 . . . . . . . 3 2 . . Spaces Dug 154 | . 5 . . 5 16 12 . 1 100 . 15 . . Terrain Destroyed 524 | . 39 6 . 5 62 26 92 4 268 . 22 . . Melee 10 | . 5 . . 5 . . . . . . . . . Projectile 160 | . . . . . 62 16 1 4 77 . . . . AOE 354 | . 34 6 . . . 10 91 . 191 . 22 . . Terrain Rammed . | . . . . . . . . . . . . . . Walls Destroyed . | . . . . . . . . . . . . . . Machines Disabled . | . . . . . . . . . . . . . . Actions | -11 -10 -10 -10 -9 -8 -8 -8 -8 -6 -6 -6 -6 -5 --------- Run | Yrd Mat Min Exi Min Mat Sto Gar Rec Fac Low Low Dat Pro Total 11725 | 29 987 562 357 285 1012 984 1177 725 4295 493 422 284 113 Wait 1651 | . 79 25 . 3 182 136 88 28 982 64 16 48 . Move 8809 | 13 786 519 353 272 647 665 923 572 2962 417 392 177 111 Hop 23 | . . . . . . . . . 22 . . 1 . Pick Up 102 | 1 13 5 2 1 21 12 13 3 26 . 1 4 . Fast Attach 58 | 1 7 . . . 9 16 4 1 16 1 2 1 . Attach 69 | 2 6 2 . 3 7 7 7 2 21 1 3 6 2 Detach 46 | 1 4 . . . 5 3 3 . 17 1 1 11 . Swap 82 | . 11 . 1 1 7 18 18 . 21 1 3 1 . Drop 97 | 4 8 . 1 . 21 18 10 1 23 1 1 9 . Fire 625 | 7 68 11 . . 104 108 108 19 185 7 3 5 . Melee 31 | . 5 . . 5 . . . . . . . 21 . Ram . | . . . . . . . . . . . . . . Kick . | . . . . . . . . . . . . . . Crush 23 | . . . . . 9 1 . 11 2 . . . . Escape Stasis 21 | . . . . . . . 3 . 18 . . . . Rewire 88 | . . . . . . . . 88 . . . . . Trap . | . . . . . . . . . . . . . . Miscellaneous . | . . . . . . . . . . . . . . Route ------- -11/Scrapyard -10/Materials (discovered 5 exits: [*Mat x3] / [*Min x2]) -10/Mines (discovered 3 exits: [*Mat x2] / *Exi) -10/Exiles -9/Mines -8/Materials (discovered 2 exits: *Sto x2) -8/Storage (discovered 2 exits: [*Fac] / Gar) -8/Garrison (discovered 3 exits: *Rec x3) -8/Recycling -6/Factory (discovered 6 exits: [*Fac x3] / *Low x2 / Gar) -6/Lower Caves -6/Lower Caves -6/Data Miner -5/Proximity Caves History --------- Turn | Location | Event 16 | -11/Scrapyard | Discovered new exit (range 2) 46 | -11/Scrapyard | Entered Materials 318 | -10/Materials | Build established: Mutant 392 | -10/Materials | Discovered new exit (range 13) 481 | -10/Materials | Discovered new exit (range 11) 606 | -10/Materials | Repaired Arm. Wheel 692 | -10/Materials | Discovered new exit (range 16) 835 | -10/Materials | Lost 3 parts (1n2w) 846 | -10/Materials | Derelicts attacked the area 882 | -10/Materials | Discovered new exit (range 16) 1071 | -10/Materials | Central database locked down 1076 | -10/Materials | Discovered new exit (range 14) 1167 | -10/Materials | Entered Mines 1168 | -10/Mines | Met a Derelict testing a Signal Generator 1171 | -10/Mines | Found Signal Generator 1178 | -10/Mines | Discovered new exit (range 8) 1192 | -10/Mines | Learned Materials stockpile data 1208 | -10/Mines | Core integrity fell below 50% 1275 | -10/Mines | Discovered new exit (range 9) 1316 | -10/Mines | A weapon hastily lodged in a ceiling crevice suddenly fell to the ground 1444 | -10/Mines | Found a hidden stash of uninstalled traps 1466 | -10/Mines | Deemed a non-threat by the Exiles lab entrance 1466 | -10/Mines | Discovered new exit (range 5) 1635 | -10/Mines | Learned location of 1 exit from Materials 1777 | -10/Mines | Entered Exiles 1804 | -10/Exiles | Met 8R-AWN 1822 | -10/Exiles | Met EX-HEX 1863 | -10/Exiles | Met EX-DEC 1867 | -10/Exiles | Learned location of Zion (-7) 1884 | -10/Exiles | Met EX-BIN 2020 | -10/Exiles | Aligned with FarCom system 2021 | -10/Exiles | Given EX-Vault access code 2049 | -10/Exiles | Opened EX-Vault 2061 | -10/Exiles | Found Flying Fortress v7 2094 | -10/Exiles | Warned to stay clear of 0b10 Research branches 2171 | -10/Exiles | Discovered new exit (range 11) 2183 | -10/Exiles | Left Exiles lab with Flying Fortress v7 2183 | -10/Exiles | Entered Mines 2291 | -9/Mines | Assisted by bots powering up and referring to "LRC-V3" 2326 | -9/Mines | Learned location of Storage (-8) 2374 | -9/Mines | Met a Derelict who couldn't figure out how to use a Trap Extractor 2412 | -9/Mines | Lost 3 parts (1p2w) 2435 | -9/Mines | Assembled infested the area 2440 | -9/Mines | Assisted by a Guerilla fighting off Assembled 2484 | -9/Mines | Crushed by falling debris 2484 | -9/Mines | Core integrity fell below 20% 2504 | -9/Mines | Lost 3 allies 2526 | -9/Mines | Discovered new exit (range 7) 2533 | -9/Mines | Entered Materials 2533 | -8/Materials | Evolved 4 slots: Propulsion x2, Utility x2 2534 | -8/Materials | Identified exit to Storage 3658 | -8/Materials | Garrison activated, responded to threat 4073 | -8/Materials | Entered Storage 4473 | -8/Storage | Met a pair of Derelict thieves 4507 | -8/Storage | Garrison activated, responded to threat 4580 | -8/Storage | Lost 4 parts (3n1w) 4621 | -8/Storage | Build established: Scavenger-Mutant 5063 | -8/Storage | Repaired Hrd. Medium Armor Plating 5103 | -8/Storage | Repaired Arm. Treads 5241 | -8/Storage | Identified exit to Garrison 5457 | -8/Storage | Core integrity fell below 50% 5487 | -8/Storage | Discovered new exit (range 16) 5502 | -8/Storage | Learned location of Armory (-4) 5598 | -8/Storage | Garrison activated, responded to threat 5625 | -8/Storage | Entered Garrison 5684 | -8/Garrison | Triggered checkpoint 5721 | -8/Garrison | Triggered checkpoint 5736 | -8/Garrison | Triggered checkpoint 5761 | -8/Garrison | Triggered checkpoint 5880 | -8/Garrison | Discovered new exit (range 12) 5898 | -8/Garrison | Identified exit to Recycling 6078 | -8/Garrison | Discovered exit to Recycling (range 12) 6259 | -8/Garrison | Phase Generator disabled 6292 | -8/Garrison | Discovered exit to Recycling (range 67) 6292 | -8/Garrison | Discovered exit to Recycling (range 42) 6292 | -8/Garrison | Discovered exit to Recycling (range 15) 6323 | -8/Garrison | Triggered checkpoint 6667 | -8/Garrison | Triggered checkpoint 6678 | -8/Garrison | Garrison Relay disabled 6991 | -8/Garrison | Triggered checkpoint 7008 | -8/Garrison | Garrison Relay disabled 7201 | -8/Garrison | Triggered checkpoint 7232 | -8/Garrison | Rescued a captive Derelict 7234 | -8/Garrison | Rescued a captive Derelict 7276 | -8/Garrison | Garrison Relay disabled 7492 | -8/Garrison | Garrison Relay disabled 7510 | -8/Garrison | Entered Recycling 7906 | -8/Recycling | Lost 4 allies 7969 | -8/Recycling | Discovered new exit (range 16) 8596 | -8/Recycling | Entered Factory 8596 | -6/Factory | Accompanied by 3 allies 8596 | -6/Factory | Evolved 4 slots: Power x1, Propulsion x1, Utility x2 8667 | -6/Factory | Fabricated Huge Storage Unit (x1) 8792 | -6/Factory | Destroyed 7 combat bots 8795 | -6/Factory | Lost 5 parts (2p3n) 8922 | -6/Factory | Fabricated Mic. Fission Core? 8997 | -6/Factory | Repaired Imp. Medium Armor Plating? 9012 | -6/Factory | Fabricated Hacking Suite? 9031 | -6/Factory | Repaired Hrd. Medium Armor Plating 9052 | -6/Factory | Discovered new exit (range 8) 9324 | -6/Factory | Build established: Hacker-Mutant 9447 | -6/Factory | Discovered new exit (range 6) 9691 | -6/Factory | Discovered new exit (range 12) 9765 | -6/Factory | Found Launcher Loader 9807 | -6/Factory | Identified exit to Lower Caves 9906 | -6/Factory | Repaired Mni. Grenade Launcher 10130 | -6/Factory | Discovered new exit (range 4) 10169 | -6/Factory | Identified exit to Garrison 10256 | -6/Factory | Fabricated Hvy. Treads? 10346 | -6/Factory | Search patrols dispatched 10842 | -6/Factory | Build established: Machinist-Mutant 11467 | -6/Factory | Fabricated Imp. Heavy Armor Plating? 11729 | -6/Factory | Fabricated Hacking Suite (x1) 12096 | -6/Factory | First assault squad dispatched 12151 | -6/Factory | Spotted B-75 Beast 12169 | -6/Factory | Destroyed 8 combat bots 12234 | -6/Factory | Found Hvy. Reflective Plating 12238 | -6/Factory | Lost 4 parts (2n1u1w) 12239 | -6/Factory | Entered Lower Caves 12254 | -6/Lower Caves | Met a Warlord Commander 12255 | -6/Lower Caves | Learned location of Warlord (-5) 12256 | -6/Lower Caves | Warlord Commander delivered Encrypted Comm Array 12439 | -6/Lower Caves | Learned 8 Factory zone layouts 12482 | -6/Lower Caves | Build established: Mutant 12491 | -6/Lower Caves | Discovered new exit (range 7) 12494 | -6/Lower Caves | Learned Factory trap positions 12618 | -6/Lower Caves | Entered another Lower Caves area 12709 | -6/Lower Caves | Attracted the attention of an 0b10 checkpoint 12824 | -6/Lower Caves | Discovered new exit (range 15) 12884 | -6/Lower Caves | Entered Data Miner 12884 | -6/Data Miner | Discovered new exit (range 6) 12921 | -6/Data Miner | Met Data Miner 13009 | -6/Data Miner | Learned location of Section 7 (-2) 13009 | -6/Data Miner | Acquired the access code to Warlord's prototype stash 13038 | -6/Data Miner | Received God Mode back door access code from Data Miner 13064 | -6/Data Miner | Destroyed Data Miner 13066 | -6/Data Miner | Interfaced with the Data Conduit 13067 | -6/Data Miner | Found Prototype Hackware 13069 | -6/Data Miner | Found Prototype Hackware 13071 | -6/Data Miner | Found Prototype Hackware 13251 | -6/Data Miner | Core integrity fell below 50% 13273 | -6/Data Miner | Identified Quantum Router 13275 | -6/Data Miner | Core integrity fell below 20% 13282 | -6/Data Miner | Entered Proximity Caves 13282 | -5/Proximity Caves | Identified System Mapper 13283 | -5/Proximity Caves | Identified Deep Network Scanner 13303 | -5/Proximity Caves | Lost 3 parts (2n1w) 13340 | -5/Proximity Caves | Destroyed by S-27 Virus with Autogun Last Messages --------------- 13237_ Exp. Thermal Shield fried. 13237_ Adv. Heat Sink fried. 13237_ Adv. Energy Well fried. 13237_ Adv. Particle Charger fried. 13237_ Enhanced Grunt destroyed. 13268_ Med. Treads destroyed. 13269_ Flying Fortress v7 destroyed. 13270_ Dropped Hcp. Storage Unit. 13270_ Dropped Hvy. Reflective Plating. 13272_ Acquired Prototype Hackware. 13272_ Mak. Spear destroyed. 13273_ Acquired Prototype Hackware. 13273_ Identified Quantum Router. 13276_ Extracted 10 energy. LOCATION=UNKNOWN GOAL=ESCAPE 13282_ Identified System Mapper. 13283_ Identified Deep Network Scanner. 13293_ Acquired derelict log, extracted data. Data stored: Armory entrances (x1). Map ----- +----------------------------------------------------+ | ?????????????????????????????????????????????????? | | ?????????????????????????????????????????????????? | | ?????????????????????????????????????????????????? | | ?????????????????????????????????????????????????? | | ?????????????????????????????????????????????????? | | ?????????????????????##########??????????????????? | | ????????????????????## ##?????????????????? | | ????????????????????# ##????????????????? | | ????????????????????## #????????????????? | | ?????????????????????## #####????????????????? | | ??????????????????????# #????????????????????? | | ?????????????????????## #????????????????????? | | ????????????????????## ##???????????#????????? | | ???????????????????## ####????????? #????????? | | ?????????????????### ##?? ##?????? ?????????? | | ????????????????## #??? ##???? ??????????? | | ????????????????# #??? ##?? ???????????? | | ????????????????# #???# ## ?????????????? | | ????????#??????## ## #??## ??????????????? | | ?#??????# ##### #####?## s???????????????? | | # #?????# #??#### s#????????????????? | | ## ??# #?## ##???????????????? | | ####### #### s #???????????????? | | ###### #?# s #???????????????? | | #?### #???????????????? | | ? ##???#@ ##???????????????? | | ? #### #????# #????????????????? | | ?# ?????# ###### ## ##????????????????? | | ?# ????##### ## ####?????????????????? | | ?# #???## #???????????????????? | | ?# ##### ###???????????????????? | | ## ## ##?????????????????????? | | ##### ## ##??????????????????????? | | #???##### #???????????????????????? | | ##??????# #???????????????????????? | | ## #?????? ##???????????????????????? | | ## #????? #????????????????????????? | | # ##???? ####????????????????????????? | | ### ##???# ##???????????????????????????? | | ###?# ##????# #?????????????????????????????? | | ????# #?????## #??????????????????????????????? | | ????####??????## #???????????????????????????????? | | ???????????????##????????????????????????????????? | | ?????????????????????????????????????????????????? | | ?????????????????????????????????????????????????? | | ?????????????????????????????????????????????????? | | ?????????????????????????????????????????????????? | | ?????????????????????????????????????????????????? | | ?????????????????????????????????????????????????? | | ?????????????????????????????????????????????????? | +----------------------------------------------------+ Best States ------------- Heat Dissipation 51 Energy Generation 28 Energy Capacity 360 Matter Stores 300 Matter Capacity 300 Sight Range 16 Terrain Scan Range 20 Terrain Scan Density 10 Jamming Range 12 Armor Coverage 1200 Resistance: TH 25 Weapon Cycling 15 Evasion (%) 61 Targeting Accuracy 8 Melee Accuracy 6 Launcher Accuracy 20 Core Analysis 6 Recoil Reduction 4 Salvage Targeting 1 Offensive Hacking 45 Defensive Hacking 25 Authchip Count 1 Item Schematics ----------------- Hammer | -10/Materials | Hacked Huge Storage Unit | -8/Storage | Hacked Hacking Suite | -8/Recycling | Hacked Imp. Utility Shielding | -8/Recycling | Hacked Lrn. Missile Launcher | -8/Recycling | Hacked Hvy. Treads | -6/Factory | Hacked Imp. Heavy Armor Plating | -6/Factory | Scanalyzed Combat Drone Bay | -6/Data Miner | Free Lgt. Regenerative Plating | -6/Data Miner | Free Enh. Flexi-carbon Leg | -6/Data Miner | Free Imp. Matter Compressor | -6/Data Miner | Free Cld. Plasma Rifle | -6/Data Miner | Free Imp. Gyrokinetic Inverter | -6/Data Miner | Free Imp. Remote Shield | -6/Data Miner | Free Phase Gun | -6/Data Miner | Free Adv. Coolant Injector | -6/Data Miner | Free Adv. Powered Armor | -6/Data Miner | Free Hyp. Railgun | -6/Data Miner | Free Robot Schematics ------------------ P-70 Sage | -6/Data Miner | Free E-15 Imp | -6/Data Miner | Free B-60 Warrior | -6/Data Miner | Free M-22 Extractor | -6/Data Miner | Free M-30 Cleanser | -6/Data Miner | Free I-47 Archangel | -6/Data Miner | Free Fabricated ------------ Huge Storage Unit | x1 | -6/Factory Mic. Fission Core | x2 | -6/Factory | Preloaded Hacking Suite | x1 | -6/Factory Hvy. Treads | x2 | -6/Factory Imp. Heavy Armor Plating | x1 | -6/Factory Hacking Suite | x1 | -6/Factory Alien Tech Used ----------------- None Achievements -------------- None Challenges ------------ None Game ------ Seed ShadingSensorReplicator Manual? 0 Play Time 03:26:00 Cumulative 137.2 hours Start 2024.07.09 @ 19:18:15 End 2024.07.09 @ 23:02:50 Sessions 1 Manual Loads 0 Difficulty Rogue Special Mode None Game No. 37 Rogue 37 Adventurer 0 Explorer 0 Win Type - Total 5 Types 4/0/1/0/0/0/0/0/0 Lore% 59 Gallery% 71 Achievement% 64 Wizard Run 0 Options --------- Layout 2 ASCII 0 Keyboard 1 Movement Vi Keybinds 0 Fullscreen 1 Font 24/Smallcaps Map View 50x44 Zoom Use 0% Tactical HUD 1 Map Filters NONE Filters NONE Steam 1 RUN: 565193df-3b15-4c46-8a8f-fac4f95235dd